Cogmind - Beta 9.6 @@@ ROGUE MODE // 2020.04.30 @ 09:05:31 Player: TravelDemon Result: Destroyed by Executioner with Helical Railgun Performance ------------- Evolutions (5) 2500 Regions Visited (12) 2400 Robots Destroyed (147) 735 Value Destroyed (5632) 5632 Prototype IDs (4) 80 Alien Tech Used (0) 0 Bonus (2360) 2360 TOTAL SCORE: 13707 Bonus ------- High Alert Combat Kills 881 Follower Combat Kills 631 Met Warlord at Base 500 MAIN.C Attacked Warlord 500 Friendly Fire -152 Cogmind --------- Core Integrity 0/1000 Matter 300/300 Energy 100/100 System Corruption 4% Temperature Cool (9) Movement Core (50) Location -5/Warlord Parts ------- > --- POWER (2) -------- (None) > --- PROPULSION (4) --- (None) > --- UTILITY (7) ------ Advanced Signal Interpreter > --- WEAPON (4) ------- (None) > --- INVENTORY (4) ---- Armored Huge Wheel Layered Medium Armor Plating High-powered Shock Rifle Peak State ------------ > --- POWER ------------ Fission Core Micro Fission Core > --- PROPULSION ------- Armored Huge Wheel Armored Huge Wheel > --- UTILITY ---------- Large Storage Unit Large Storage Unit High-capacity Storage Unit Long-range Sensor Array Advanced Signal Interpreter Layered Medium Armor Plating Advanced System Shield > --- WEAPON ----------- Improved Heavy Laser Heavy Plasma Cannon Advanced Plasma Cannon Precision Rocket Launcher > --- INVENTORY -------- Armored Treads Armored Treads Armored Treads Armored Treads Armored Treads Armored Treads Improved Medium Treads Fusion Compressor Improved Cooling System Matter Compressor Long-range Terrain Scanner Advanced Terrain Scan Processor Advanced Terrain Scan Processor Energy Filter Improved Particle Charger Advanced Shield Generator High-powered Shock Rifle Heavy Ion Cannon Heavy Ion Cannon Heavy Ion Cannon Heavy Ion Cannon Heavy Phase Cannon Neutron Cannon Heavy Pick [Rating: 81] Favorites ----------- Power Light Nuclear Core Engine Ion Engine Power Core Light Nuclear Core Reactor Light Antimatter Reactor Propulsion Armored Huge Wheel Treads Armored Treads Leg Aluminum Leg Wheel Armored Huge Wheel Utility Large Storage Unit Device Long-range Sensor Array Storage Large Storage Unit Processor Advanced Signal Interpreter Hackware Advanced System Shield Protection Layered Medium Armor Plating Weapon Improved EM Pulse Cannon Energy Gun Medium Laser Energy Cannon Improved EM Pulse Cannon Ballistic Gun Assault Rifle Ballistic Cannon Magnetic Acceleration Cannon Launcher Precision Rocket Launcher Impact Weapon Power Maul Slashing Weapon Katana Piercing Weapon Heavy Pick Build | -11 -10 -10 -10 -9 -8 -7 -7 -6 -5 -5 -5 -5 ------- Run | Scr Mat Min Exi Min Mat Fac Sto Fac Fac Upp Upp War Slots Evolved 10 | . . . . . 4 2 . 2 2 . . . Power 1 | . . . . . . . . 1 . . . . Propulsion 2 | . . . . . 1 1 . . . . . . Utility 5 | . . . . . 1 1 . 1 2 . . . Weapon 2 | . . . . . 2 . . . . . . . Parts Attached 138 | 6 10 9 2 . 18 8 15 33 22 1 11 3 Power 14 | 1 2 1 . . 3 1 2 3 1 . . . Engine 5 | 1 2 . . . . 1 . 1 . . . . Core 8 | . . 1 . . 3 . 2 1 1 . . . Reactor 1 | . . . . . . . . 1 . . . . Propulsion 23 | 2 2 3 1 . 6 1 2 1 . . 4 1 Treads 7 | 2 . . . . . . . . . . 4 1 Leg 11 | . 2 3 1 . 5 . . . . . . . Wheel 5 | . . . . . 1 1 2 1 . . . . Hover . | . . . . . . . . . . . . . Flight . | . . . . . . . . . . . . . Utility 48 | 1 4 . . . 3 5 2 14 13 1 4 1 Device 16 | . . . . . . . 1 6 5 1 3 . Storage 10 | 1 4 . . . 1 . . 3 . . 1 . Processor 2 | . . . . . . 1 . 1 . . . . Hackware 5 | . . . . . . 1 . . 4 . . . Protection 15 | . . . . . 2 3 1 4 4 . . 1 Artifact . | . . . . . . . . . . . . . Weapon 53 | 2 2 5 1 . 6 1 9 15 8 . 3 1 Energy Gun 11 | 2 . 3 . . 3 . . . 3 . . . Energy Cannon 16 | . . . . . 2 . 4 4 4 . 2 . Ballistic Gun 4 | . 2 . 1 . . . . 1 . . . . Ballistic Cannon 9 | . . . . . . 1 . 8 . . . . Launcher 7 | . . 2 . . . . 3 1 . . 1 . Special Weapon . | . . . . . . . . . . . . . Impact Weapon 3 | . . . . . . . 2 1 . . . . Slashing Weapon 1 | . . . . . 1 . . . . . . . Piercing Weapon 2 | . . . . . . . . . 1 . . 1 Special Melee Weapon . | . . . . . . . . . . . . . Unidentified Prototypes 4 | . . . 1 . . . 2 . 1 . . . Parts Lost 19 | . 2 3 . . . . 6 . 1 . . 7 Power 3 | . . 1 . . . . 1 . 1 . . . Propulsion 2 | . . 1 . . . . 1 . . . . . Utility 3 | . . . . . . . 1 . . . . 2 Weapon 11 | . 2 1 . . . . 3 . . . . 5 Highest Loss Streak 7 | . 2 1 . . . . 3 . 1 . . 7 Average Slot Usage (%) 90 | . 93 99 88 85 89 83 83 83 87 88 90 97 Engine 2 | . 13 3 . . . . . 1 . . . . Core 8 | . . 10 14 14 9 6 6 6 8 11 11 10 Treads 4 | . 16 . . . . . . . . . 4 22 Leg 10 | . 11 28 28 28 25 . . . . . . . Wheel 5 | . . . . . . 15 14 13 11 11 8 . Device 3 | . . . . . . . 2 4 7 5 8 10 Storage 21 | . 21 28 28 28 21 23 23 19 17 17 17 16 Processor 2 | . . . . . . . . 5 5 5 5 5 Protection 2 | . . . . . 5 6 4 1 4 5 5 4 Energy Gun 6 | . 8 19 6 . 9 . . . 3 5 5 4 Energy Cannon 7 | . . . . . 8 15 14 6 12 11 12 16 Ballistic Gun 4 | . 19 4 10 14 7 . . . . . . . Ballistic Cannon 1 | . . . . . . 6 1 9 . . . . Launcher 1 | . . 4 . . . . 5 2 . . 1 . Impact Weapon 1 | . . . . . . . 3 6 3 . . . Naked Turns . | . . . . . . . . . . . . . Heaviest Build 125 | 12 57 58 63 63 93 105 105 121 124 113 125 125 Greatest Support 90 | 40 40 20 20 20 52 56 56 56 56 56 90 90 Greatest Overweight (x) 5 | 3 2 5 3 3 5 1 1 2 2 2 2 1 Average Overweight (x) 1 | 1 . 2 2 3 1 1 1 1 1 2 1 . Largest Inventory Capacity 24 | 6 18 18 18 18 24 24 24 24 24 24 24 24 Average Capacity 20 | 5 9 18 18 18 20 24 24 23 24 24 24 23 Most Carried 24 | 4 16 18 18 18 24 24 24 24 24 24 24 24 Average Carried 19 | 2 8 17 17 17 18 23 20 22 22 23 23 22 Final Capacity 24 | 6 18 18 18 18 24 24 24 24 24 24 24 4 Final Carried 24 | 4 16 18 18 18 24 24 18 24 24 24 23 4 Class Distribution -------------------- 38% | Mutant 31% | Hauler-Mutant 21% | Hauler-Skirmisher 3% | Scavenger-Tank 3% | Hauler-Tank Dominant Class ---------------- Mutant | -10/Materials Mutant | -10/Mines Mutant | -10/Exiles Mutant | -9/Mines Scavenger-Tank | -8/Materials Hauler-Mutant | -7/Factory Hauler-Mutant | -7/Storage Hauler-Mutant | -6/Factory Hauler-Mutant | -5/Factory Hauler-Skirmisher | -5/Upper Caves Hauler-Skirmisher | -5/Upper Caves Hauler-Skirmisher | -5/Warlord Resources | -11 -10 -10 -10 -9 -8 -7 -7 -6 -5 -5 -5 -5 ----------- Run | Scr Mat Min Exi Min Mat Fac Sto Fac Fac Upp Upp War Matter Collected 3303 | 260 315 583 20 18 180 64 534 563 233 139 231 163 Remotely . | . . . . . . . . . . . . . Salvage Created 5261 | . 660 499 . . 1237 64 1661 651 250 28 211 . Parts 292 | . 44 22 . . 70 7 74 37 17 1 20 . Haulers Intercepted 2 | . . . . . . . 2 . . . . . Recyclers Shooed 1 | . . . . . 1 . . . . . . . Parts Field Recycled . | . . . . . . . . . . . . . Retrieved Matter . | . . . . . . . . . . . . . Parts Self-Destructed 137 | . . . . . . . . . . 1 20 116 Prevented 39 | . . . . . . . . . . . . 39 Kills | -11 -10 -10 -10 -9 -8 -7 -7 -6 -5 -5 -5 -5 ------- Run | Scr Mat Min Exi Min Mat Fac Sto Fac Fac Upp Upp War Combat Hostiles Destroyed 119 | . 20 16 . . 23 1 34 15 3 . 7 . Melee 5 | . . . . . 2 . 3 . . . . . Guns 53 | . 20 11 . . 21 . . . . . 1 . Cannons 32 | . . . . . . 1 18 8 3 . 2 . AOE 27 | . . 4 . . . . 12 7 . . 4 . Classes Destroyed 18 | . 4 1 . . 4 . 4 3 . 1 1 . Worker 6 | . . . . . . . 6 . . . . . Builder 8 | . . . . . 1 . 1 5 1 . . . Tunneler 1 | . . . . . . . . 1 . . . . Hauler 2 | . . . . . . . 2 . . . . . Recycler 1 | . 1 . . . . . . . . . . . Minesweeper 1 | . . . . . . . . . . 1 . . Mechanic 1 | . . . . . . . . 1 . . . . Operator 3 | . 1 . . . 2 . . . . . . . Watcher 5 | . . . . . 3 . 1 . 1 . . . Swarmer 19 | . 9 3 . . 2 . . . . . 5 . Grunt 71 | . 11 12 . . 15 . 24 8 . . 1 . Brawler 3 | . . . . . 1 . 2 . . . . . Duelist 1 | . . . . . . . 1 . . . . . Sentry 15 | . . . . . 5 1 6 2 1 . . . Hunter 3 | . . . . . . . 1 2 . . . . Programmer 5 | . . . . . . . . 3 2 . . . Behemoth 1 | . . . . . . . . . . . 1 . Assembled 1 | . . 1 . . . . . . . . . . Best Kill Streak 17 | . 4 2 . . 10 1 17 12 2 1 5 . Combat Bots Only 13 | . 4 2 . . 10 1 13 7 2 . 5 . Max Kills in Single Turn 5 | . 1 2 . . 2 1 3 5 1 1 4 . Gunslinging . | . . . . . . . . . . . . . Exploded 4 | . . 2 . . . . 2 4 . . 4 . Melee 1 | . . . . . 1 . 1 . . . . . Uniques/NPCs Destroyed . | . . . . . . . . . . . . . Combat | -11 -10 -10 -10 -9 -8 -7 -7 -6 -5 -5 -5 -5 -------- Run | Scr Mat Min Exi Min Mat Fac Sto Fac Fac Upp Upp War Damage Taken 7652 | . 649 619 . . 301 68 2114 1222 559 . 187 1933 Core 1643 | . 90 145 . . 15 6 169 205 46 . . 967 Absorbed by Shields . | . . . . . . . . . . . . . Core Remaining (%) 70 | 100 . . . 6 97 . 75 75 . . . . Volleys Fired 216 | . 56 48 . . 8 1 59 26 12 1 5 . Largest 4 | . 2 2 . . 2 3 3 3 3 3 4 . Hottest 343 | . 90 100 . . 125 186 192 223 230 220 343 . Shots Fired 538 | . 110 84 . . 108 3 118 58 37 4 15 1 Gun 319 | . 110 79 . . 108 . . 4 13 1 4 . Cannon 189 | . . . . . . 3 99 49 24 3 10 1 Launcher 30 | . . 5 . . . . 19 5 . . 1 . Special . | . . . . . . . . . . . . . Kinetic 239 | . 72 21 . . 92 1 14 39 . . . . Thermal 176 | . 38 38 . . 16 . 30 10 25 4 14 1 Explosive 30 | . . 5 . . . . 19 5 . . 1 . Electromagnetic 93 | . . 20 . . . 2 55 4 12 . . . Robot Hit Streak 24 | . 9 10 . . 12 5 24 8 8 4 13 . Robot Miss Streak 5 | . 3 2 . . 2 . 2 3 5 . 1 1 Penetration Max . | . . . . . . . . . . . . . Secondary Targets 3 | . 3 . . . . . . . . . . . Max Gunslinging Chain 1 | . 1 . . . . . . . . . . . Autonomous 93 | . . . . . 93 . . . . . . . Shots Hit Robots 402 | . 71 61 . . 95 1 104 37 19 3 11 . Core Hits 257 | . 33 30 . . 44 1 80 47 9 2 10 1 Critical Hits 7 | . 2 . . . 2 1 2 . . . . . Critical Kills 1 | . . . . . . 1 . . . . . . Critical Parts Destroyed 6 | . 2 . . . 2 . 2 . . . . . Melee Attacks 75 | . . . . . 4 . 60 4 3 . . 4 Impact 26 | . . . . . . . 19 4 3 . . . Slashing 45 | . . . . . 4 . 41 . . . . . Piercing 4 | . . . . . . . . . . . . 4 Sneak Attacks 7 | . . . . . . . 5 1 1 . . . Combat Hostiles 1 | . . . . . . . 1 . . . . . Follow-up Attacks 1 | . . . . . . . 1 . . . . . Damage Inflicted 15105 | . 879 1060 . 3 3013 27 6082 2588 548 89 798 18 Guns 4371 | . 878 743 . . 2505 . . 52 47 26 120 . Cannons 3527 | . . . . . . 27 2082 678 398 63 279 . Explosions 5535 | . . 288 . . 377 . 2803 1668 . . 399 . Melee 1620 | . . . . . 131 . 1197 190 102 . . . Ramming 52 | . 1 29 . 3 . . . . 1 . . 18 Kinetic 4167 | . 622 197 . . 2407 27 326 588 . . . . Thermal 2383 | . 256 378 . . 98 . 635 130 398 89 399 . Explosive 5263 | . . 288 . . 377 . 2631 1568 . . 399 . Electromagnetic 1620 | . . 168 . . . . 1293 112 47 . . . Impact 843 | . . . . . . . 551 190 102 . . . Slashing 777 | . . . . . 131 . 646 . . . . . Piercing . | . . . . . . . . . . . . . Highest Corruption 20 | . . . . . . . 5 1 7 7 7 20 Average Corruption 4 | . . . . . . . 4 1 5 7 7 10 Corruption Purged . | . . . . . . . . . . . . . Effects 73 | . . . . . . . 17 5 16 9 15 11 Message Errors 20 | . . . . . . . 3 3 5 5 2 2 Matter Fused 12 | . . . . . . . 2 . 3 . 5 2 Heat Flow Errors 6 | . . . . . . . 2 . 2 1 . 1 Energy Discharges 10 | . . . . . . . 1 . 2 1 4 2 Data Loss (minor) 13 | . . . . . . . 5 2 3 . 2 1 Data Loss (major) 4 | . . . . . . . 1 . . 1 2 . Misfires 4 | . . . . . . . 1 . 1 1 . 1 Misdirections 2 | . . . . . . . . . . . . 2 Targeting Errors 2 | . . . . . . . 2 . . . . . Overload Shots . | . . . . . . . . . . . . . Overflow Damage 554 | . . 3 . . 67 . 300 98 86 . . . Projectiles 23 | . . . . . . . 19 . 4 . . . Explosions 185 | . . 3 . . 67 . 75 40 . . . . Melee 346 | . . . . . . . 206 58 82 . . . Knockbacks 8 | . . . . . . . 4 2 2 . . . Impact 5 | . . . . . . . 3 1 1 . . . Kinetic 2 | . . . . . . . 1 1 . . . . Secondary 1 | . . . . . . . . . 1 . . . Self-Inflicted Damage 185 | . . 12 . . . . 91 46 . . 28 8 Shots 8 | . . . . . . . 4 3 . . 1 . Rammed 5 | . . 2 . . . . . . 1 . . 2 Targets Rammed 9 | . 1 4 . 1 . . . . 1 . . 2 Kicked 4 | . 1 2 . 1 . . . . . . . . Crushed . | . . . . . . . . . . . . . Highest Temperature 558 | . 226 441 . . 147 120 381 558 324 220 414 177 Average Temperature 122 | . 104 101 . . 47 63 139 151 121 90 151 67 Received Heat Transfer 1782 | . 231 312 . . 141 . 594 111 45 . 33 315 Effects 13 | . . 2 . . . . 6 3 1 . 1 . Shutdowns 5 | . . 1 . . . . 2 2 . . . . Energy Bleed 4 | . . 1 . . . . 1 . 1 . 1 . Interference 3 | . . . . . . . 2 1 . . . . Damage (minor) 1 | . . . . . . . 1 . . . . . Siege Activations . | . . . . . . . . . . . . . Robots Corrupted 1 | . . . . . . . 1 . . . . . Combat Hostiles 1 | . . . . . . . 1 . . . . . Parts Fried 8 | . . . . . . . 3 2 3 . . . Impact Corruptions 14 | . . . . . . . 5 5 4 . . . Robots Melted 1 | . . 1 . . . . . . . . . . Combat Hostiles 1 | . . 1 . . . . . . . . . . Parts Melted 5 | . . 3 . . . . . . . 1 1 . Heat Transferred 4373 | . 609 1036 . . 259 . 1100 161 611 124 473 . Parts Sabotaged 6 | . . . . . . . . 2 . . . 4 Parts Stolen . | . . . . . . . . . . . . . Parts Stripped . | . . . . . . . . . . . . . Power Chain Reactions 2 | . . . . . . . 2 . . . . . Missiles Intercepted . | . . . . . . . . . . . . . Alert | -11 -10 -10 -10 -9 -8 -7 -7 -6 -5 -5 -5 -5 ------- Run | Scr Mat Min Exi Min Mat Fac Sto Fac Fac Upp Upp War Peak Influence 1206 | . 255 148 . 55 651 198 1206 843 370 . . . Average Influence 302 | . 88 42 . 7 431 145 597 701 167 . . . Maximum Alert Level 4 | . 1 . . . 2 . 4 3 1 . . . Low Security (%) 56 | 100 96 100 . 100 7 100 22 . 59 . . . Level 1 10 | . 3 . . . 22 . 20 . 40 . . . Level 2 17 | . . . . . 70 . 4 51 . . . . Level 3 14 | . . . . . . . 45 48 . . . . Level 4 . | . . . . . . . 7 . . . . . Level 5 . | . . . . . . . . . . . . . High Security . | . . . . . . . . . . . . . Max Security . | . . . . . . . . . . . . . Squads Dispatched 28 | . 6 . . 1 5 . 9 6 1 . . . Investigation 6 | . 3 . . 1 2 . . . . . . . Extermination 6 | . . . . . . . 2 3 1 . . . Reinforcement 12 | . 3 . . . 3 . 5 1 . . . . Assault 3 | . . . . . . . 1 2 . . . . Garrison 1 | . . . . . . . 1 . . . . . Intercept . | . . . . . . . . . . . . . Construction Impeded 4 | . . . . . 1 . 2 1 . . . . Haulers Reinforced 2 | . . . . . . . 2 . . . . . Stealth | -11 -10 -10 -10 -9 -8 -7 -7 -6 -5 -5 -5 -5 --------- Run | Scr Mat Min Exi Min Mat Fac Sto Fac Fac Upp Upp War Distress Signals 11 | . 5 . . . 1 . 4 . 1 . . . Communications Jammed . | . . . . . . . . . . . . . Distress Signals . | . . . . . . . . . . . . . Times Spotted 243 | . 39 17 . 2 34 2 63 21 9 . 7 49 Peak Tracking Total 28 | . 6 3 . . 5 2 6 10 4 . 5 28 Tactical Retreats 21 | . 3 1 . . 2 . 10 1 . . . 4 Traps | -11 -10 -10 -10 -9 -8 -7 -7 -6 -5 -5 -5 -5 ------- Run | Scr Mat Min Exi Min Mat Fac Sto Fac Fac Upp Upp War Traps Triggered 13 | . 2 . . . 3 1 2 2 3 . . . Indirectly . | . . . . . . . . . . . . . Trap Hack Attempts . | . . . . . . . . . . . . . Triggered . | . . . . . . . . . . . . . Disarmed . | . . . . . . . . . . . . . Reprogrammed . | . . . . . . . . . . . . . Reused . | . . . . . . . . . . . . . Traps Extracted . | . . . . . . . . . . . . . Installed . | . . . . . . . . . . . . . Triggered 10 | . . . . . . . . . . . . 10 Machines | -11 -10 -10 -10 -9 -8 -7 -7 -6 -5 -5 -5 -5 ---------- Run | Scr Mat Min Exi Min Mat Fac Sto Fac Fac Upp Upp War Machines Disabled 37 | . . . . . 6 . 16 15 . . . . Max in Single Turn 7 | . . . . . 2 . 3 7 . . . . Machines Sabotaged . | . . . . . . . . . . . . . Garrisons Compromised . | . . . . . . . . . . . . . Overloaded Fab Kills . | . . . . . . . . . . . . . Fab Network Shutdowns . | . . . . . . . . . . . . . Hacking | -11 -10 -10 -10 -9 -8 -7 -7 -6 -5 -5 -5 -5 --------- Run | Scr Mat Min Exi Min Mat Fac Sto Fac Fac Upp Upp War Machines Accessed 30 | . 5 . . 1 3 3 3 3 5 1 . 6 Terminals 18 | . 5 . . . 3 2 2 1 4 1 . . Fabricators 3 | . . . . . . . . 2 1 . . . Repair Stations 1 | . . . . . . . 1 . . . . . Recycling Units . | . . . . . . . . . . . . . Scanalyzers . | . . . . . . . . . . . . . Garrison Access 1 | . . . . . . 1 . . . . . . Total Hacks 59 | . 13 . . 1 12 8 5 5 8 1 . 6 Successful 32 | . 5 . . 1 7 2 3 3 4 1 . 6 Failed 26 | . 7 . . . 5 6 2 2 4 . . . Catastrophic 5 | . 1 . . . . 3 . . 1 . . . Database Lockouts 2 | . 2 . . . . . . . . . . . Manual 43 | . 14 . 1 . 12 6 3 3 4 . . . Terminals 44 | . 13 . . . 12 6 3 2 7 1 . . Fabricators 4 | . . . . . . . . 3 1 . . . Repair Stations 2 | . . . . . . . 2 . . . . . Recycling Units . | . . . . . . . . . . . . . Scanalyzers . | . . . . . . . . . . . . . Garrison Access 2 | . . . . . . 2 . . . . . . Terminal Hacks 16 | . 2 . . 1 2 . 1 . 3 1 . 6 Record 7 | . . . . . . . . . 1 1 . 5 Robot Analysis 2 | . 1 . . . 1 . . . . . . . Open Door 2 | . . . . 1 . . . . . . . 1 Branch Access Points 1 | . . . . . . . . . 1 . . . Unreport Threat 4 | . 1 . . . 1 . 1 . 1 . . . Fabricator Hacks 2 | . . . . . . . . 1 1 . . . Network Status 2 | . . . . . . . . 1 1 . . . Repair Station Hacks 2 | . . . . . . . 2 . . . . . Scan Component 1 | . . . . . . . 1 . . . . . Repair 1 | . . . . . . . 1 . . . . . Recycling Unit Hacks . | . . . . . . . . . . . . . Scanalyzer . | . . . . . . . . . . . . . Garrison Access Hacks . | . . . . . . . . . . . . . Unauthorized Hacks 11 | . 3 . . . 4 2 . 2 . . . . Terminals 9 | . 3 . . . 4 2 . . . . . . Track 2 | . 1 . . . 1 . . . . . . . Botnet 7 | . 2 . . . 3 2 . . . . . . Fabricators 2 | . . . . . . . . 2 . . . . Report 1 | . . . . . . . . 1 . . . . Siphon 1 | . . . . . . . . 1 . . . . Repair Stations . | . . . . . . . . . . . . . Recycling Units . | . . . . . . . . . . . . . Scanalyzers . | . . . . . . . . . . . . . Garrison Access . | . . . . . . . . . . . . . Data Cores Recovered 1 | . . . . . 1 . . . . . . . Used . | . . . . . . . . . . . . . Hacking Detections 18 | . 5 . . . 3 3 1 3 3 . . . Full Trace Events 1 | . . . . . 1 . . . . . . . Feedback Events . | . . . . . . . . . . . . . Feedback Blocked . | . . . . . . . . . . . . . Robot Schematics Acquired . | . . . . . . . . . . . . . Robots Built . | . . . . . . . . . . . . . Matter . | . . . . . . . . . . . . . Time . | . . . . . . . . . . . . . Total Robot Build Rating . | . . . . . . . . . . . . . Part Schematics Acquired . | . . . . . . . . . . . . . Parts Built . | . . . . . . . . . . . . . Matter . | . . . . . . . . . . . . . Time . | . . . . . . . . . . . . . Total Part Build Rating . | . . . . . . . . . . . . . Parts Repaired 1 | . . . . . . . 1 . . . . . Time 44 | . . . . . . . 44 . . . . . Parts Recycled . | . . . . . . . . . . . . . Recycled Matter . | . . . . . . . . . . . . . Retrieved Matter . | . . . . . . . . . . . . . Retrieved Components . | . . . . . . . . . . . . . Parts Scanalyzed . | . . . . . . . . . . . . . Part Schematics Acquired . | . . . . . . . . . . . . . Parts Damaged . | . . . . . . . . . . . . . Bothacking | -11 -10 -10 -10 -9 -8 -7 -7 -6 -5 -5 -5 -5 ------------ Run | Scr Mat Min Exi Min Mat Fac Sto Fac Fac Upp Upp War Used RIF Installer . | . . . . . . . . . . . . . Robots Hacked . | . . . . . . . . . . . . . Non-combat . | . . . . . . . . . . . . . Combat . | . . . . . . . . . . . . . Robot Hacks Applied . | . . . . . . . . . . . . . Relay Couplers Released . | . . . . . . . . . . . . . Robots Rewired 2 | . . . 2 . . . . . . . . . Allies Hacked 1 | . . . . . . . 1 . . . . . Hacks Repelled . | . . . . . . . . . . . . . Allies | -11 -10 -10 -10 -9 -8 -7 -7 -6 -5 -5 -5 -5 -------- Run | Scr Mat Min Exi Min Mat Fac Sto Fac Fac Upp Upp War Total Allies 4 | . . . 2 1 . . 1 . . . . . Largest Group 3 | . . . 2 3 2 . 1 1 . . . . Highest-Rated Group 99 | . . . 29 60 29 . 99 94 . . . . Highest-Rated Ally 99 | . . . 21 31 21 . 99 94 . . . . Total Orders . | . . . . . . . . . . . . . Ally Attacks 76 | . . . . 1 21 . 54 . . . . . Total Damage 1936 | . . . . 43 467 . 1426 . . . . . Kills 23 | . . . . 2 4 . 17 . . . . . Allies Corrupted . | . . . . . . . . . . . . . Allies Melted . | . . . . . . . . . . . . . Intel | -11 -10 -10 -10 -9 -8 -7 -7 -6 -5 -5 -5 -5 ------- Run | Scr Mat Min Exi Min Mat Fac Sto Fac Fac Upp Upp War Robot Analysis Total 2 | . 1 . . . 1 . . . . . . . Derelict Logs Recovered 2 | . . 1 . . . . . . . 1 . . Drone Launches . | . . . . . . . . . . . . . Drone Recoveries . | . . . . . . . . . . . . . Exploration | -11 -10 -10 -10 -9 -8 -7 -7 -6 -5 -5 -5 -5 ------------- Run | Scr Mat Min Exi Min Mat Fac Sto Fac Fac Upp Upp War Turns Passed 12504 | 70 1461 1960 877 326 1098 564 1276 1621 997 405 517 1332 Spaces Moved 7088 | 40 747 850 420 153 609 448 722 1133 659 333 367 607 Core 64 | 39 . . . . . . . . . . . 25 Treads 1072 | 1 440 . . . . . . . . . 49 582 Legs 2284 | . 307 850 420 153 554 . . . . . . . Wheels 3668 | . . . . . 55 448 722 1133 659 333 318 . Hover . | . . . . . . . . . . . . . Flight . | . . . . . . . . . . . . . Fastest Speed 50 | 50 120 180 180 210 130 110 110 110 110 120 120 50 Average Speed 144 | 145 156 180 201 210 155 110 110 114 118 120 128 181 Slowest Speed 270 | 200 180 270 210 210 270 110 110 120 120 120 187 187 Overloaded Moves . | . . . . . . . . . . . . . Propulsion Burnouts . | . . . . . . . . . . . . . Robots Hopped . | . . . . . . . . . . . . . Cave-ins Triggered 2 | . . . . . . . 1 . . . . 1 Exploration Rate (%) 52 | 4 84 99 89 48 57 9 62 28 15 50 57 81 Regions Visited 12 Branch Regions 7 Pre-discovered Areas 2 | . . 2 . . . . . . . . . . Known Exits Taken 5 | . . . . . . 1 . 1 1 1 1 . Unknown Exits Taken 7 | 1 1 1 1 1 1 . 1 . . . . . Scrap Searched 5 | . . 2 . . . . . . . 2 1 . Spaces Dug 28 | . . . . . . . 23 . 1 . . 4 Terrain Destroyed 407 | . . 31 . . 78 . 213 55 5 1 19 5 Melee 11 | . . . . . . . 6 . 1 . . 4 Projectile 71 | . . . . . 44 . 9 9 4 1 3 1 AOE 325 | . . 31 . . 34 . 198 46 . . 16 . Actions | -11 -10 -10 -10 -9 -8 -7 -7 -6 -5 -5 -5 -5 --------- Run | Scr Mat Min Exi Min Mat Fac Sto Fac Fac Upp Upp War Total 8860 | 49 928 1187 453 158 744 518 1009 1406 840 336 398 834 Wait 1055 | . 82 272 . 3 55 45 137 145 121 . 10 185 Move 7075 | 39 746 849 419 152 608 447 721 1132 658 332 366 606 Hop . | . . . . . . . . . . . . . Pick Up 123 | 4 24 4 4 1 24 8 5 34 11 1 3 . Fast Attach 56 | 6 4 2 1 . 8 3 5 14 11 . . 2 Attach 32 | . 3 2 . . 6 2 7 5 2 . 4 1 Detach 21 | . 1 . . . 3 2 5 5 2 . 1 2 Swap 50 | . 3 5 1 . 4 3 3 14 9 1 7 . Drop 102 | . 8 1 6 1 24 7 8 27 10 1 2 7 Fire 216 | . 56 48 . . 8 1 59 26 12 1 5 . Melee 74 | . . . . . 4 . 59 4 3 . . 4 Ram 3 | . . . . . . . . . 1 . . 2 Kick 6 | . 1 4 . 1 . . . . . . . . Crush . | . . . . . . . . . . . . . Escape Stasis 1 | . . . . . . . . . . . . 1 Rewire 46 | . . . 22 . . . . . . . . 24 Trap . | . . . . . . . . . . . . . Miscellaneous . | . . . . . . . . . . . . . Route ------- -11/Scrapyard -10/Materials (discovered 4 exits: [*Mat x3] / [*Min]) -10/Mines (discovered 3 exits: [*Mat x2] / *Exi) -10/Exiles -9/Mines -8/Materials (discovered 2 exits: *Fac x2) -7/Factory (discovered 2 exits: *Fac / *Sto) -7/Storage -6/Factory -5/Factory (discovered 2 exits: *Upp x2) -5/Upper Caves -5/Upper Caves -5/Warlord (discovered 1 exit: *Pro) History --------- Turn | Location | Event 5 | -11/Scrapyard | Discovered new exit (range 16) 71 | -11/Scrapyard | Entered Materials 300 | -10/Materials | Build established: Mutant 603 | -10/Materials | Central database locked down 676 | -10/Materials | Discovered new exit (range 12) 734 | -10/Materials | Discovered new exit (range 7) 782 | -10/Materials | Discovered new exit (range 3) 1155 | -10/Materials | Discovered new exit (range 4) 1532 | -10/Materials | Entered Mines 1931 | -10/Mines | Discovered new exit (range 11) 1948 | -10/Mines | Core integrity fell below 50% 2014 | -10/Mines | Core integrity fell below 20% 2019 | -10/Mines | Discovered new exit (range 12) 2125 | -10/Mines | Learned location of Recycling (-7) 2177 | -10/Mines | Excavation squad dispatched 2177 | -10/Mines | A large section of the Mines collapsed 2427 | -10/Mines | Excavation squad dispatched 2531 | -10/Mines | Learned location of Storage (-7) 3484 | -10/Mines | Deemed a non-threat by the Exiles lab entrance 3484 | -10/Mines | Discovered new exit (range 5) 3492 | -10/Mines | Entered Exiles 3492 | -10/Exiles | Found Exiles lab destroyed 3686 | -10/Exiles | Opened EX-Vault 3698 | -10/Exiles | Found Prototype Ballistic Gun 3698 | -10/Exiles | Identified AWS/Gauss 4346 | -10/Exiles | Discovered new exit (range 12) 4369 | -10/Exiles | Entered Mines 4369 | -9/Mines | Accompanied by 2 allies 4372 | -9/Mines | Received a Mining Laser from a helpful Derelict 4468 | -9/Mines | Received a Rocket Launcher from a helpful Derelict 4631 | -9/Mines | Discovered new exit (range 12) 4649 | -9/Mines | Met a Derelict shopkeep closing up shop 4695 | -9/Mines | Entered Materials 4695 | -8/Materials | Accompanied by 2 allies 4695 | -8/Materials | Evolved 4 slots: Propulsion x1, Utility x1, Weapon x2 4826 | -8/Materials | Discovered new exit (range 16) 4860 | -8/Materials | Destroyed 10 combat bots 5077 | -8/Materials | Build established: Scavenger-Tank 5079 | -8/Materials | Discovered new exit (range 14) 5744 | -8/Materials | Build established: Hauler-Mutant 5793 | -8/Materials | Entered Factory 5793 | -7/Factory | Evolved 2 slots: Propulsion x1, Utility x1 5871 | -7/Factory | Discovered new exit (range 14) 5919 | -7/Factory | Identified exit to Storage 6015 | -7/Factory | Discovered new exit (range 3) 6357 | -7/Factory | Entered Storage 6998 | -7/Storage | Crushed by falling debris 7018 | -7/Storage | Destroyed 13 combat bots 7033 | -7/Storage | Met 01-MTF 7335 | -7/Storage | Garrison activated, responded to threat 7386 | -7/Storage | Lost 3 parts (1p1n1w) 7421 | -7/Storage | Discovered new exit (range 8) 7519 | -7/Storage | Repaired Arm. Huge Wheel 7557 | -7/Storage | First assault squad dispatched 7633 | -7/Storage | Entered Factory 7633 | -6/Factory | Accompanied by 1 ally 7633 | -6/Factory | Evolved 2 slots: Power x1, Utility x1 7638 | -6/Factory | 01-MTF left 8333 | -6/Factory | First assault squad dispatched 8515 | -6/Factory | Destroyed 7 combat bots 8734 | -6/Factory | Discovered new exit (range 12) 8753 | -6/Factory | Identified exit to Factory 9254 | -6/Factory | Entered another Factory area 9254 | -5/Factory | Evolved 2 slots: Utility x2 9791 | -5/Factory | Build established: Hauler-Skirmisher 10094 | -5/Factory | Build established: Hauler-Mutant 10166 | -5/Factory | Identified exit to Upper Caves 10251 | -5/Factory | Entered Upper Caves 10331 | -5/Upper Caves | Learned location of 2 exits from Factory 10549 | -5/Upper Caves | Build established: Hauler-Skirmisher 10578 | -5/Upper Caves | Discovered new exit (range 14) 10593 | -5/Upper Caves | Identified exit to Upper Caves 10656 | -5/Upper Caves | Entered another Upper Caves area 10776 | -5/Upper Caves | Spotted B-75 Beast 10871 | -5/Upper Caves | Destroyed B-75 Beast 11143 | -5/Upper Caves | Discovered new exit (range 11) 11162 | -5/Upper Caves | Identified exit to Warlord 11173 | -5/Upper Caves | Entered Warlord 11189 | -5/Warlord | System corruption reached 10% 11321 | -5/Warlord | System corruption cleaned by Quarantine Array 11552 | -5/Warlord | Discovered new exit (range 15) 11576 | -5/Warlord | Identified exit to Proximity Caves 11673 | -5/Warlord | System corruption cleaned by Quarantine Array 11678 | -5/Warlord | Warlord's base attacked by MAIN.C 11762 | -5/Warlord | Met Warlord 12028 | -5/Warlord | Warlord forces counterattacked 12370 | -5/Warlord | Spotted Executioner 12464 | -5/Warlord | Crushed by falling debris 12474 | -5/Warlord | Spotted Striker 12496 | -5/Warlord | Core integrity fell below 50% 12500 | -5/Warlord | Spotted Striker 12500 | -5/Warlord | Spotted Executioner 12505 | -5/Warlord | Core integrity fell below 20% 12505 | -5/Warlord | Destroyed by Executioner with Helical Railgun Last Messages --------------- 12484_ Warlord: "IMPOSS00101101 01101001 01010111 01001001 01001100 01001100 01110010 01100101 01110100 01110101 01110010 01101110" 12484_ Warlord destroyed. 12485_ Tesla Rifle self-destruct mechanism malfunctions. 12485_ Neutron Cannon destroyed. 12485_ Adv. Plasma Cannon destroyed. 12488_ Dropped Arm. Treads. 12488_ Lyr. Medium Armor Plating destroyed. 12488_ Dropped Arm. Treads. 12489_ Dropped Imp. Medium Treads. 12490_ Dropped Hcp. Storage Unit. 12490_ Dropped Lrg. Storage Unit. 12491_ Hvy. Ion Cannon crushed and broken. 12491_ Lrn. Sensor Array destroyed. 12495_ Striker destroyed. 12502_ Adv. Reaction Control System fries itself beyond repair. 12504_ Slammed into Striker. 12505_ Slammed into Executioner. 12505_ Penetrated by Slug. 12505_ Slug penetrates G-50 Soldier. Map ----- +----------------------------------------------------+ | #???????????????#####??????????????????? | | ???????????#" ##????????#####????? | | #?????????## #???????## ###??? | | "" #?????????# #??????## ##?? | | "" ??????????# ##?????## > #?? | | "" ?#?????????# #?????# #?? | | ??? ??????????# ##????# #??? | | ??? ???????????## #????# ##??? | | ?????????????????### ##???## #???? | | ???????????????????## #????## ##???? | | ????????????????????## #???### ##????? | | ?????????????????????# ##### ###???? | | ????????????????????# ###?? | | ???????????????????## ### ### #?? | | ##???????????????????## ##?? #? | | #??""????????????????### ##?? #? | | #??#""??????????????????# #?? ##? | | ???#""#?????????????????## ##? #?? | | ????#""#??????????????????## #?# ##? | | #####""#####???????????????## ##?# #? | | =#!% "" "############?????## ### ##? | | [#*!="" !"""""""""" "#??????## # ###? | | %[[=!""/=%*" """"% %"#?####?## = ? | | ]*=!%%![! g% =!*==% !!###% ###g!=%* ??? | | ==%!%%%%% %g=%%%%! %]%gggKg g ## #??? | | [=%%=%%*=% [%%* *%%%=[/gE@g g #### #??? | | !%*%!% % *!%=]%!= %%;g## ##??# #??? | | *[%%!"" """!"" "##### #???# ##?? | | !!! ="" """"""""#???# #?### #?? | | !# "" ############???# #### # #?? | | #####"" ????????????## #?# #?? | | ????#"" ## ##??????????## ### #?? | | ????#""######???????????# ### ##?? | | ????#""#???????????????## ##?# #??? | | ????#""????????????????# #??## ##??? | | ?????""????????????????# #???## #???? | | ###????????????????????# ##????# #???? | | ###????????????????????# #?????## ##??? | | ##???????????????????## ##????## #??? | | ##???????????????????## ##??## #??? | | #????????????????????# #??# #??? | | ?????????????????##### ## #?# #??? | | ????????????????## # ##?# ## #??? | | ????????????????# #??# ## #??? | | ????????????????# ##?? ## ##??? | | ????????????????# ## #??# #???? | | ????????????????###### #???## ##???? | | ????????????????????# ##????######????? | | ????????????????????#####???????????????? | | ????????????????????????????????????????? | +----------------------------------------------------+ Best States ------------- Heat Dissipation 67 Energy Generation 34 Energy Capacity 380 Matter Stores 300 Matter Capacity 300 Sight Range 16 Robot Scan Range 20 Terrain Scan Range 24 Terrain Scan Density 10 Armor Coverage 225 Power Shielding 33 Evasion (%) 50 Recoil Reduction 4 Particle Charging 20 Offensive Hacking 22 Defensive Hacking 14 Item Schematics ----------------- None Robot Schematics ------------------ None Fabricated ------------ Nothing Alien Tech Used ----------------- None Achievements -------------- A Powerful Ally? Challenges ------------ None Game ------ Seed SeismicLargeGenerator Manual? 0 Play Time 02:20:22 Cumulative 39.9 hours Start 2020.04.28 @ 19:28:41 End 2020.04.30 @ 09:05:31 Sessions 9 Manual Loads 0 Difficulty Rogue Special Mode None Game No. 55 Rogue 53 Adventurer 0 Explorer 2 Win Type - Total 0 Types 0/0/0/0/0/0/0 Lore% 29 Gallery% 38 Achievement% 31 Wizard Run 0 Options --------- ASCII 0 Keyboard 1 Movement Numpad Keybinds 0 Fullscreen 2 Font 18/SmallcapsGlow Map View 76x50 Tactical HUD 1 Map Filters NONE Filters NONE Steam 1 RUN: f71e8706-8f9b-4f23-ae70-f7b619ab23ed